[Event "FIDE WCCC G10 2018"]
[Site "Santiago de Compostela"]
[Date "2018.11.10"]
[Round "6"]
[White "Khanyl, Chuluuntuya"]
[Black "Braeutigam, Katerina"]
[Result "0-1"]
[ECO "A46"]
[WhiteElo "1276"]
[BlackElo "1647"]
[Annotator "NA RC"]
[PlyCount "124"]
[EventDate "2018.11.04"]
[EventType "swiss"]
[EventCountry "ESP"]
[SourceTitle "playchess.com"]
[Source "ChessBase"]
[SourceQuality "1"]
[TimeControl "40/5400+30:1800+30"]

1. d4 {[%emt 0:00:00]} Nf6 {[%emt 0:00:00]} 2. Nf3 {[%emt 0:00:00]} e6 {[%emt 0:00:00]} 3. Bg5 {[%emt 0:00:14]} c5 {[%emt 0:01:03]} 4. c3 {[%emt 0:01:56]} b6 {[%emt 0:01:25]} 5. Nbd2 {[%emt 0:07:19]} Bb7 {[%emt 0:01:12]} 6. e3 {[%emt 0:02:00]} Be7 {[%emt 0:00:18]} 7. Bd3 {[%emt 0:01:04]} d6 {[%emt 0:00:46]} 8. O-O {[%emt 0:01:15]} Nbd7 {[%emt 0:01:56]} 9. Re1 {[%emt 0:01:44]} O-O {[%emt 0:06:05]} 10. Qc2 {[%emt 0:12:57]} Re8 {[%emt 0:04:24]} 11. e4 {[%emt 0:03:39]} h6 {[%emt 0:01:51]} 12. Bf4 {[%emt 0:03:55]} Rc8 {[%emt 0:09:37]} 13. Qd1 {[%emt 0:10:55]} Bf8 {[%emt 0:15:04]} 14. Nc4 {[%emt 0:04:26]} cxd4 {[%emt 0:09:01]} 15. cxd4 {[%emt 0:01:28]} d5 {[%emt 0:01:29]} 16. exd5 {[%emt 0:00:55]} Nxd5 {[%emt 0:01:06]} 17. Bd6 {[%emt 0:06:29]} N7f6 {[%emt 0:01:17]} 18. Bxf8 {[%emt 0:01:10]} Rxf8 {[%emt 0:00:18]} 19. Nce5 {[%emt 0:04:24]} Nb4 {[%emt 0:08:53]} 20. a3 {[%emt 0:02:41]} Nxd3 {[%emt 0:01:19]} 21. Qxd3 {[%emt 0:01:15]} Qd5 {[%emt 0:01:23]} 22. h3 {[%emt 0:03:34]} Rc7 {[%emt 0:01:44]} 23. Rec1 {[%emt 0:03:39]} Rfc8 {[%emt 0:01:21]} 24. Rxc7 {[%emt 0:01:42]} Rxc7 {[%emt 0:00:10]} 25. Qd2 {[%emt 0:04:10]} Ne4 {[%emt 0:02:51]} 26. Qe3 {[%emt 0:02:47]} f6 {[%emt 0:17:57]} 27. Ng4 {[%emt 0:02:40]} Rc2 {[%emt 0:01:52]} 28. Rb1 {[%emt 0:07:35]} Qa2 {[%emt 0:01:05]} 29. Qe1 {[%emt 0:02:38]} h5 {[%emt 0:02:14]} 30. Ne3 {[%emt 0:01:18]} Rxb2 {[%emt 0:01:40]} 31. Rxb2 {[%emt 0:00:49]} Qxb2 {[%emt 0:00:08]} 32. Nc4 {[%emt 0:01:24]} Qa2 {[%emt 0:00:47]} 33. Nfd2 {[%emt 0:01:00]} Qc2 {[%emt 0:03:00]} 34. Nxe4 {[%emt 0:02:05]} Bxe4 {[%emt 0:00:52]} 35. Nd6 {[%emt 0:00:30]} Bd5 {[%emt 0:00:17]} 36. Nb5 {[%emt 0:01:10]} Qa4 {[%emt 0:01:37]} 37. Nc7 {[%emt 0:00:28]} Qxd4 {[%emt 0:00:15]} 38. Nxe6 {[%emt 0:00:24]} Qe4 {[%emt 0:01:16]} 39. Qxe4 {[%emt 0:00:25]} Bxe4 {[%emt 0:00:06]} 40. Nc7 {[%emt 0:00:00]} Bc6 {[%emt 0:00:00]} 41. h4 {[%emt 0:00:57]} a5 {[%emt 0:01:42]} 42. Ne6 {[%emt 0:00:24]} Kh7 {[%emt 0:00:59]} 43. Nf4 {[%emt 0:00:37]} Kh6 {[%emt 0:00:56]} 44. g3 {[%emt 0:00:54]} b5 {[%emt 0:00:38]} 45. Kf1 {[%emt 0:00:41]} b4 {[%emt 0:05:26]} 46. axb4 {[%emt 0:00:15]} a4 {[%emt 0:01:46]} 47. Ne6 {[%emt 0:02:12]} a3 {[%emt 0:03:23]} 48. Nd4 {[%emt 0:00:09]} Ba4 {[%emt 0:00:19]} 49. Ke2 {[%emt 0:12:47]} a2 {[%emt 0:00:09]} 50. Nb3 {[%emt 0:00:23]} Bxb3 {[%emt 0:00:11]} 51. b5 {[%emt 0:00:05]} a1=Q 52. Kd3 Qa5 {[%emt 0:01:26]} 53. b6 {[%emt 0:00:40]} Qxb6 {[%emt 0:00:16]} 54. f4 {[%emt 0:00:09]} Qb4 {[%emt 0:00:35]} 55. Ke3 {[%emt 0:00:09]} Bd5 {[%emt 0:00:30]} 56. Kd3 {[%emt 0:00:13]} Qe4+ {[%emt 0:00:43]} 57. Kc3 {[%emt 0:00:09]} Qc4+ {[%emt 0:00:11]} 58. Kd2 {[%emt 0:00:06]} Be4 {[%emt 0:00:55]} 59. Ke3 {[%emt 0:00:09]} Qd3+ {[%emt 0:00:11]} 60. Kf2 {[%emt 0:00:05]} Qd2+ {[%emt 0:00:11]} 61. Kf1 {[%emt 0:00:53]} Bf3 {[%emt 0:01:12]} 62. Kg1 {[%emt 0:00:12]} Qg2# {[%emt 0:00:05]} 0-1

[Event "FIDE WCCC G10 2018"]
[Site "Santiago de Compostela"]
[Date "2018.11.10"]
[Round "6"]
[White "Wen, Kally"]
[Black "Rasheva, Nora"]
[Result "1/2-1/2"]
[ECO "B17"]
[WhiteElo "1195"]
[BlackElo "1495"]
[Annotator "NA"]
[PlyCount "73"]
[EventDate "2018.11.04"]
[EventType "swiss"]
[EventCountry "ESP"]
[SourceTitle "playchess.com"]
[Source "ChessBase"]
[SourceQuality "1"]
[TimeControl "40/5400+30:1800+30"]

1. e4 {[%emt 0:00:00]} c6 {[%emt 0:00:00]} 2. d4 {[%emt 0:00:00]} d5 {[%emt 0:00:00]} 3. Nc3 {[%emt 0:00:00]} dxe4 {[%emt 0:00:00]} 4. Nxe4 {[%emt 0:00:20]} Nd7 {[%emt 0:00:24]} 5. Nf3 {[%emt 0:00:35]} Ngf6 {[%emt 0:00:08]} 6. Ng3 {[%emt 0:00:21]} e6 {[%emt 0:00:44]} 7. Be2 {[%emt 0:02:09]} Be7 {[%emt 0:00:41]} 8. O-O O-O {[%emt 0:00:53]} 9. b3 {[%emt 0:01:46]} b6 {[%emt 0:01:54]} 10. c4 {[%emt 0:07:09]} Bb7 {[%emt 0:04:16]} 11. Bb2 {[%emt 0:04:40]} c5 {[%emt 0:08:27]} 12. Qd2 {[%emt 0:06:10]} cxd4 {[%emt 0:18:23]} 13. Bxd4 {[%emt 0:05:50]} Nc5 {[%emt 0:01:47]} 14. Rad1 {[%emt 0:10:10]} Qc7 {[%emt 0:18:29]} 15. Qb2 {[%emt 0:07:15]} Rad8 {[%emt 0:06:30]} 16. Rfe1 {[%emt 0:11:33]} Ncd7 {[%emt 0:08:01]} 17. Ne5 {[%emt 0:06:29]} Nxe5 {[%emt 0:08:05]} 18. Bxe5 {[%emt 0:00:27]} Qc8 {[%emt 0:00:02]} 19. Nh5 {[%emt 0:03:51]} Nxh5 {[%emt 0:01:24]} 20. Bxh5 {[%emt 0:00:41]} f6 {[%emt 0:00:28]} 21. Bc3 {[%emt 0:01:07]} e5 {[%emt 0:01:18]} 22. Qe2 {[%emt 0:02:28]} Rxd1 {[%emt 0:01:11]} 23. Rxd1 {[%emt 0:00:23]} Rd8 {[%emt 0:00:58]} 24. Bg4 {[%emt 0:08:22]} Rxd1+ {[%emt 0:00:10]} 25. Qxd1 {[%emt 0:00:15]} Qc6 {[%emt 0:02:31]} 26. Bf3 {[%emt 0:00:50]} e4 {[%emt 0:00:21]} 27. Bg4 {[%emt 0:01:51]} Qd6 {[%emt 0:01:19]} 28. Qxd6 {[%emt 0:04:39]} Bxd6 {[%emt 0:00:07]} 29. Be6+ {[%emt 0:00:25]} Kf8 {[%emt 0:00:08]} 30. g3 {[%emt 0:00:07]} Ke7 {[%emt 0:02:34]} 31. Bg4 {[%emt 0:00:18]} g6 {[%emt 0:00:22]} 32. Kf1 {[%emt 0:00:07]} f5 {[%emt 0:00:17]} 33. Bd1 {[%emt 0:00:08]} Ke6 {[%emt 0:00:11]} 34. Ke1 {[%emt 0:00:53]} Be5 {[%emt 0:00:06]} 35. Bb4 {[%emt 0:02:28]} Bb2 36. Kd2 Be5 37. Ke1 1/2-1/2

[Event "FIDE WCCC G10 2018"]
[Site "Santiago de Compostela"]
[Date "2018.11.11"]
[Round "7"]
[White "Kleymenova, Valeria"]
[Black "Nguyen, Ha Khanh Linh"]
[Result "1/2-1/2"]
[ECO "D00"]
[WhiteElo "1773"]
[BlackElo "1449"]
[Annotator "NA RC"]
[PlyCount "112"]
[EventDate "2018.11.04"]
[EventType "swiss"]
[EventCountry "ESP"]
[SourceTitle "playchess.com"]
[Source "ChessBase"]
[SourceQuality "1"]
[TimeControl "40/5400+30:1800+30"]

1. d4 {[%emt 0:00:00]} d5 {[%emt 0:00:00]} 2. Bf4 {[%emt 0:00:00]} Nf6 {[%emt 0:00:14]} 3. e3 {[%emt 0:00:16]} e6 {[%emt 0:01:07]} 4. Nf3 {[%emt 0:00:23]} c5 {[%emt 0:01:11]} 5. c3 {[%emt 0:00:17]} Nc6 {[%emt 0:01:44]} 6. Bd3 {[%emt 0:00:29]} Bd6 {[%emt 0:01:54]} 7. Bg3 {[%emt 0:00:27]} O-O {[%emt 0:00:50]} 8. Nbd2 {[%emt 0:00:35]} b6 {[%emt 0:01:02]} 9. O-O {[%emt 0:01:13]} Bxg3 {[%emt 0:01:48]} 10. hxg3 {[%emt 0:00:12]} Bb7 {[%emt 0:02:03]} 11. Qe2 {[%emt 0:00:52]} Qe7 {[%emt 0:05:04]} 12. Rac1 {[%emt 0:03:25]} Rfd8 {[%emt 0:03:44]} 13. a3 {[%emt 0:04:48]} c4 {[%emt 0:07:26]} 14. Bb1 {[%emt 0:00:34]} e5 {[%emt 0:09:43]} 15. dxe5 {[%emt 0:00:35]} Nxe5 {[%emt 0:00:07]} 16. Nd4 {[%emt 0:03:51]} Nfd7 {[%emt 0:10:06]} 17. e4 {[%emt 0:06:11]} Nd3 {[%emt 0:10:07]} 18. Bxd3 {[%emt 0:07:43]} cxd3 {[%emt 0:00:22]} 19. Qxd3 {[%emt 0:00:06]} Nc5 {[%emt 0:02:32]} 20. Qe3 {[%emt 0:02:30]} dxe4 {[%emt 0:03:56]} 21. f3 {[%emt 0:04:33]} Re8 {[%emt 0:10:13]} 22. fxe4 {[%emt 0:08:41]} Nxe4 {[%emt 0:02:35]} 23. Rce1 {[%emt 0:07:07]} Qg5 {[%emt 0:04:27]} 24. Nxe4 {[%emt 0:02:58]} Qxe3+ {[%emt 0:00:15]} 25. Rxe3 {[%emt 0:00:09]} Rxe4 {[%emt 0:00:35]} 26. Rfe1 {[%emt 0:01:12]} Rae8 {[%emt 0:01:38]} 27. Rxe4 {[%emt 0:01:05]} Rxe4 {[%emt 0:00:47]} 28. Rxe4 {[%emt 0:01:17]} Bxe4 {[%emt 0:00:08]} 29. Nb5 {[%emt 0:00:49]} a6 {[%emt 0:01:36]} 30. Nd6 {[%emt 0:00:25]} Ba8 {[%emt 0:07:49]} 31. c4 {[%emt 0:00:31]} g6 {[%emt 0:01:35]} 32. b4 {[%emt 0:03:51]} Kg7 {[%emt 0:01:43]} 33. a4 {[%emt 0:00:28]} Kf6 {[%emt 0:01:58]} 34. b5 {[%emt 0:09:58]} axb5 {[%emt 0:04:30]} 35. cxb5 {[%emt 0:00:10]} Ke6 {[%emt 0:00:50]} 36. Nc8 {[%emt 0:00:15]} Be4 {[%emt 0:00:34]} 37. Nxb6 {[%emt 0:00:09]} Kd6 {[%emt 0:00:16]} 38. Kf2 {[%emt 0:06:43]} Kc5 {[%emt 0:01:23]} 39. Nd7+ {[%emt 0:00:21]} Kb4 {[%emt 0:00:37]} 40. b6 {[%emt 0:00:00]} Bc6 {[%emt 0:00:00]} 41. Ne5 {[%emt 0:01:20]} Bb7 {[%emt 0:01:41]} 42. Nxf7 {[%emt 0:00:19]} Kc5 {[%emt 0:01:20]} 43. a5 {[%emt 0:00:10]} Ba6 {[%emt 0:00:52]} 44. Ke3 {[%emt 0:02:05]} Kc6 {[%emt 0:02:35]} 45. Ng5 {[%emt 0:02:43]} h5 {[%emt 0:01:02]} 46. Ne6 {[%emt 0:00:15]} Bc4 {[%emt 0:03:10]} 47. Nd4+ {[%emt 0:01:18]} Kb7 {[%emt 0:00:23]} 48. Nc2 {[%emt 0:00:25]} Bd5 {[%emt 0:01:00]} 49. Kf2 {[%emt 0:02:05]} Be4 {[%emt 0:04:51]} 50. Nb4 {[%emt 0:00:23]} g5 {[%emt 0:01:10]} 51. Na2 {[%emt 0:00:28]} Ka6 {[%emt 0:00:58]} 52. Nc3 {[%emt 0:00:24]} Bc6 {[%emt 0:00:36]} 53. Ne2 {[%emt 0:01:10]} Kxa5 {[%emt 0:01:51]} 54. Nd4 {[%emt 0:00:06]} Kxb6 {[%emt 0:02:40]} 55. Ne6 {[%emt 0:00:04]} h4 {[%emt 0:01:09]} 56. Nxg5 {[%emt 0:00:29]} hxg3+ {[%emt 0:00:10]} 1/2-1/2

[Event "FIDE WCCC G10 2018"]
[Site "Santiago de Compostela"]
[Date "2018.11.11"]
[Round "7"]
[White "Zakirova, Aisha"]
[Black "Elangovan, Ramya"]
[Result "*"]
[ECO "A40"]
[WhiteElo "1678"]
[BlackElo "1352"]
[Annotator "NA RC"]
[PlyCount "101"]
[EventDate "2018.11.04"]
[EventType "swiss"]
[EventCountry "ESP"]
[SourceTitle "playchess.com"]
[Source "ChessBase"]
[SourceQuality "1"]
[TimeControl "40/5400+30:1800+30"]

1. d4 {[%emt 0:00:00]} Nf6 {[%emt 0:00:00]} 2. c4 {[%emt 0:00:00]} e6 {[%emt 0:00:00]} 3. g3 {[%emt 0:00:00]} Bb4+ {[%emt 0:00:24]} 4. Bd2 {[%emt 0:00:04]} Qe7 {[%emt 0:01:14]} 5. Bg2 {[%emt 0:00:47]} d5 {[%emt 0:02:43]} 6. a3 {[%emt 0:13:57]} Bxd2+ {[%emt 0:01:24]} 7. Nxd2 {[%emt 0:05:01]} Nbd7 {[%emt 0:04:49]} 8. Ngf3 {[%emt 0:02:46]} O-O {[%emt 0:03:37]} 9. O-O {[%emt 0:01:02]} b6 {[%emt 0:02:36]} 10. Rc1 {[%emt 0:04:48]} Bb7 {[%emt 0:04:14]} 11. cxd5 {[%emt 0:04:38]} Nxd5 {[%emt 0:00:59]} 12. e4 {[%emt 0:02:07]} N5f6 {[%emt 0:01:23]} 13. Rxc7 {[%emt 0:01:28]} Bxe4 {[%emt 0:00:58]} 14. Nxe4 {[%emt 0:01:28]} Nxe4 {[%emt 0:00:39]} 15. Ne5 {[%emt 0:00:44]} Nef6 {[%emt 0:03:04]} 16. Bxa8 {[%emt 0:00:58]} Rxa8 {[%emt 0:00:27]} 17. Qf3 {[%emt 0:00:41]} Rd8 {[%emt 0:02:23]} 18. Rfc1 {[%emt 0:02:26]} h6 {[%emt 0:04:08]} 19. Nc6 {[%emt 0:01:11]} Qd6 {[%emt 0:02:13]} 20. Nxd8 {[%emt 0:00:48]} Qxd4 {[%emt 0:01:09]} 21. Rd1 {[%emt 0:03:37]} Ne5 {[%emt 0:03:37]} 22. Qe2 {[%emt 0:04:09]} Qa4 {[%emt 0:00:51]} 23. Rc8 {[%emt 0:05:03]} Kh7 {[%emt 0:01:57]} 24. Qc2+ {[%emt 0:00:43]} Qxc2 {[%emt 0:00:16]} 25. Rxc2 {[%emt 0:00:04]} Kg6 {[%emt 0:00:45]} 26. Nc6 {[%emt 0:00:25]} Nxc6 {[%emt 0:01:15]} 27. Rxc6 {[%emt 0:00:05]} Nd5 {[%emt 0:00:19]} 28. Rxd5 {[%emt 0:00:14]} Kh7 {[%emt 0:00:48]} 29. Rd7 {[%emt 0:00:05]} Kg6 {[%emt 0:01:07]} 30. Rxa7 {[%emt 0:00:07]} b5 {[%emt 0:00:31]} 31. Rcc7 {[%emt 0:00:07]} f6 {[%emt 0:00:39]} 32. Rxg7+ {[%emt 0:00:07]} Kf5 {[%emt 0:00:21]} 33. Ra5 {[%emt 0:00:13]} e5 {[%emt 0:04:03]} 34. Rxb5 {[%emt 0:00:11]} h5 {[%emt 0:00:38]} 35. a4 {[%emt 0:00:08]} Ke6 {[%emt 0:00:13]} 36. a5 {[%emt 0:00:05]} Kd6 {[%emt 0:00:22]} 37. a6 {[%emt 0:00:11]} Kc6 {[%emt 0:00:15]} 38. a7 {[%emt 0:00:10]} Kxb5 {[%emt 0:00:14]} 39. a8=Q {[%emt 0:00:16]} Kc5 {[%emt 0:00:22]} 40. Qa3+ {[%emt 0:00:00]} Kd5 {[%emt 0:00:00]} 41. Qd3+ {[%emt 0:00:21]} Kc6 {[%emt 0:00:23]} 42. Qd7+ {[%emt 0:00:19]} Kc5 {[%emt 0:00:16]} 43. b4+ {[%emt 0:00:08]} Kc4 {[%emt 0:00:08]} 44. Qd6 {[%emt 0:00:13]} Kc3 {[%emt 0:00:14]} 45. Rc7+ {[%emt 0:00:05]} Kb3 {[%emt 0:00:04]} 46. Qd3+ {[%emt 0:00:08]} Ka4 {[%emt 0:00:25]} 47. Ra7+ {[%emt 0:00:14]} Kxb4 {[%emt 0:00:08]} 48. Rc7 {[%emt 0:00:08]} Ka5 {[%emt 0:00:06]} 49. Qb3 {[%emt 0:00:07]} Ka6 {[%emt 0:00:19]} 50. Rc4 {[%emt 0:00:08]} Ka5 {[%emt 0:00:10]} 51. Ra4# {[%emt 0:00:09]} *

[Event "FIDE WCCC G10 2018"]
[Site "Santiago de Compostela"]
[Date "2018.11.11"]
[Round "7"]
[White "Vlasova, Olesia"]
[Black "Zhou, Yafei"]
[Result "1-0"]
[ECO "A06"]
[WhiteElo "1639"]
[BlackElo "1648"]
[Annotator "NA RC"]
[PlyCount "118"]
[EventDate "2018.11.04"]
[EventType "swiss"]
[EventCountry "ESP"]
[SourceTitle "playchess.com"]
[Source "ChessBase"]
[SourceQuality "1"]
[TimeControl "40/5400+30:1800+30"]

1. Nf3 {[%emt 0:00:00]} d5 {[%emt 0:00:00]} 2. g3 {[%emt 0:00:00]} Nf6 {[%emt 0:00:00]} 3. Bg2 {[%emt 0:00:15]} Bf5 {[%emt 0:00:00]} 4. c4 {[%emt 0:00:17]} e6 {[%emt 0:01:25]} 5. Qb3 {[%emt 0:01:11]} Qc8 {[%emt 0:02:56]} 6. d3 {[%emt 0:01:30]} c6 {[%emt 0:00:36]} 7. O-O {[%emt 0:01:35]} Bd6 {[%emt 0:01:45]} 8. Nbd2 {[%emt 0:01:25]} O-O {[%emt 0:01:38]} 9. Qc2 {[%emt 0:02:19]} h6 {[%emt 0:04:10]} 10. b3 {[%emt 0:01:58]} Nbd7 {[%emt 0:00:51]} 11. Bb2 {[%emt 0:01:03]} e5 {[%emt 0:07:02]} 12. e4 {[%emt 0:07:01]} Bh7 {[%emt 0:02:24]} 13. Ne1 {[%emt 0:03:05]} dxe4 {[%emt 0:06:00]} 14. dxe4 {[%emt 0:00:15]} Qc7 {[%emt 0:02:58]} 15. Nd3 {[%emt 0:04:01]} Nc5 {[%emt 0:02:29]} 16. f3 {[%emt 0:06:21]} Rad8 {[%emt 0:01:27]} 17. Nxc5 {[%emt 0:04:20]} Bxc5+ {[%emt 0:00:05]} 18. Kh1 {[%emt 0:00:16]} Bd4 {[%emt 0:06:37]} 19. Rad1 {[%emt 0:01:43]} Bxb2 {[%emt 0:08:57]} 20. Qxb2 {[%emt 0:00:08]} Rd4 {[%emt 0:01:47]} 21. Nb1 {[%emt 0:05:41]} Rfd8 {[%emt 0:01:29]} 22. Qc2 {[%emt 0:01:21]} Bg6 {[%emt 0:04:11]} 23. Nc3 {[%emt 0:05:10]} Qd6 {[%emt 0:03:02]} 24. Rfe1 {[%emt 0:03:38]} Ne8 {[%emt 0:08:41]} 25. Rxd4 {[%emt 0:07:44]} exd4 {[%emt 0:00:23]} 26. Rd1 {[%emt 0:01:12]} Nc7 {[%emt 0:05:03]} 27. Na4 {[%emt 0:04:22]} Na6 {[%emt 0:03:59]} 28. c5 {[%emt 0:08:55]} Qd7 {[%emt 0:00:39]} 29. a3 {[%emt 0:00:54]} Nc7 {[%emt 0:02:08]} 30. Nb2 {[%emt 0:02:03]} Qe7 {[%emt 0:02:25]} 31. b4 {[%emt 0:02:13]} Qe6 {[%emt 0:04:59]} 32. Nc4 {[%emt 0:03:03]} Ne8 {[%emt 0:02:52]} 33. Na5 {[%emt 0:02:02]} Rd7 {[%emt 0:02:04]} 34. Qc4 {[%emt 0:04:37]} Nc7 {[%emt 0:05:47]} 35. Qxe6 {[%emt 0:01:10]} Nxe6 {[%emt 0:00:10]} 36. Nc4 {[%emt 0:00:15]} Kf8 {[%emt 0:00:59]} 37. Bh3 {[%emt 0:00:28]} Bh5 {[%emt 0:03:14]} 38. Bxe6 {[%emt 0:03:57]} Bxf3+ {[%emt 0:00:13]} 39. Kg1 {[%emt 0:00:07]} fxe6 {[%emt 0:00:48]} 40. Rf1 {[%emt 0:00:00]} Rf7 {[%emt 0:00:00]} 41. Ne5 {[%emt 0:00:14]} Bh5 {[%emt 0:01:57]} 42. Nxf7 {[%emt 0:00:14]} Bxf7 {[%emt 0:00:04]} 43. e5 {[%emt 0:00:38]} Ke7 {[%emt 0:01:16]} 44. Rd1 {[%emt 0:00:12]} Bg6 {[%emt 0:01:16]} 45. Rxd4 {[%emt 0:00:07]} Bb1 {[%emt 0:01:29]} 46. Kf2 {[%emt 0:00:30]} Ba2 {[%emt 0:00:18]} 47. Ke3 {[%emt 0:00:30]} Bd5 {[%emt 0:00:08]} 48. Kf4 {[%emt 0:00:21]} Kf7 {[%emt 0:00:20]} 49. Ke3 {[%emt 0:01:36]} g5 {[%emt 0:00:21]} 50. Rd2 {[%emt 0:00:19]} Kg6 {[%emt 0:00:54]} 51. Rf2 {[%emt 0:00:11]} Kg7 {[%emt 0:01:11]} 52. Rf6 {[%emt 0:01:20]} Bb3 {[%emt 0:00:42]} 53. Kd4 {[%emt 0:00:26]} Bd5 {[%emt 0:00:10]} 54. Kc3 {[%emt 0:00:55]} h5 {[%emt 0:00:32]} 55. h4 {[%emt 0:00:46]} gxh4 {[%emt 0:01:06]} 56. gxh4 {[%emt 0:00:03]} Ba2 {[%emt 0:00:44]} 57. Kd4 {[%emt 0:00:05]} Bd5 {[%emt 0:00:05]} 58. Ke3 {[%emt 0:00:05]} Bc4 {[%emt 0:00:44]} 59. Kf4 {[%emt 0:00:06]} Bd5 {[%emt 0:00:13]} 1-0

[Event "FIDE WCCC G10 2018"]
[Site "Santiago de Compostela"]
[Date "2018.11.11"]
[Round "7"]
[White "Szczotka, Klara"]
[Black "Rajanya Datta"]
[Result "1-0"]
[ECO "C11"]
[WhiteElo "1581"]
[BlackElo "1312"]
[Annotator "NA RC"]
[PlyCount "119"]
[EventDate "2018.11.04"]
[EventType "swiss"]
[EventCountry "ESP"]
[SourceTitle "playchess.com"]
[Source "ChessBase"]
[SourceQuality "1"]
[TimeControl "40/5400+30:1800+30"]

1. e4 {[%emt 0:00:00]} e6 {[%emt 0:00:00]} 2. d4 {[%emt 0:00:00]} d5 {[%emt 0:00:00]} 3. Nc3 {[%emt 0:00:00]} Nf6 {[%emt 0:00:00]} 4. e5 {[%emt 0:00:00]} Nfd7 {[%emt 0:00:00]} 5. f4 {[%emt 0:02:06]} c5 {[%emt 0:00:04]} 6. Nf3 {[%emt 0:00:31]} Nc6 {[%emt 0:00:13]} 7. Be2 {[%emt 0:03:31]} Qb6 {[%emt 0:02:09]} 8. Na4 {[%emt 0:11:59]} Qa5+ {[%emt 0:00:42]} 9. c3 {[%emt 0:04:14]} c4 {[%emt 0:06:34]} 10. b4 {[%emt 0:01:54]} Qd8 {[%emt 0:04:48]} 11. Nb2 {[%emt 0:01:43]} b5 {[%emt 0:02:47]} 12. a4 {[%emt 0:01:30]} Ba6 {[%emt 0:02:31]} 13. Bd2 {[%emt 0:01:31]} Rb8 {[%emt 0:04:37]} 14. a5 {[%emt 0:00:53]} Rc8 {[%emt 0:00:14]} 15. Rc1 {[%emt 0:03:09]} Rc7 {[%emt 0:04:42]} 16. Kf2 {[%emt 0:02:02]} Qc8 {[%emt 0:00:20]} 17. Qe1 {[%emt 0:00:14]} Be7 {[%emt 0:01:43]} 18. Nd1 {[%emt 0:00:15]} Nf8 {[%emt 0:00:16]} 19. h4 {[%emt 0:00:53]} Qd8 {[%emt 0:01:35]} 20. h5 {[%emt 0:04:34]} h6 {[%emt 0:02:18]} 21. g4 {[%emt 0:01:50]} Nh7 {[%emt 0:00:47]} 22. Qg1 {[%emt 0:01:18]} f6 {[%emt 0:01:35]} 23. Qg3 {[%emt 0:21:05]} fxe5 {[%emt 0:02:15]} 24. fxe5 {[%emt 0:00:50]} Ng5 {[%emt 0:00:34]} 25. Bxg5 {[%emt 0:01:29]} Bxg5 {[%emt 0:00:08]} 26. Nxg5 {[%emt 0:00:04]} Qxg5 {[%emt 0:00:08]} 27. Qe3 {[%emt 0:01:09]} Rf7+ {[%emt 0:00:53]} 28. Kg3 {[%emt 0:00:25]} Qe7 {[%emt 0:00:47]} 29. Nf2 {[%emt 0:01:24]} Rhf8 {[%emt 0:00:27]} 30. Nh3 {[%emt 0:00:14]} Nd8 {[%emt 0:02:26]} 31. Rcg1 {[%emt 0:06:24]} Bb7 {[%emt 0:02:58]} 32. Rg2 {[%emt 0:04:20]} Rg8 {[%emt 0:00:56]} 33. Bd1 {[%emt 0:05:52]} Qf8 {[%emt 0:04:06]} 34. Nf4 {[%emt 0:03:29]} Qe7 {[%emt 0:01:59]} 35. Bc2 {[%emt 0:03:16]} Kd7 {[%emt 0:01:39]} 36. Ng6 {[%emt 0:03:54]} Qe8 {[%emt 0:00:59]} 37. Nh4 {[%emt 0:01:38]} Qf8 {[%emt 0:01:12]} 38. Bg6 {[%emt 0:00:43]} Rf1 {[%emt 0:00:22]} 39. Rhh2 {[%emt 0:03:25]} Qe7 {[%emt 0:01:04]} 40. Rf2 {[%emt 0:00:00]} Rf8 {[%emt 0:00:00]} 41. Rxf1 {[%emt 0:03:56]} Rxf1 {[%emt 0:00:14]} 42. Nf3 {[%emt 0:00:49]} Nf7 {[%emt 0:00:38]} 43. Qe2 {[%emt 0:00:33]} Rc1 {[%emt 0:00:41]} 44. Qb2 {[%emt 0:02:20]} Rf1 {[%emt 0:00:40]} 45. Kg2 {[%emt 0:01:24]} Rxf3 {[%emt 0:02:52]} 46. Kxf3 {[%emt 0:00:08]} Ng5+ {[%emt 0:00:18]} 47. Kg3 {[%emt 0:00:59]} Bc6 {[%emt 0:00:46]} 48. Rh1 {[%emt 0:07:24]} Kc7 {[%emt 0:00:30]} 49. Rf1 {[%emt 0:00:44]} Be8 {[%emt 0:00:07]} 50. Bb1 {[%emt 0:01:41]} Kb7 {[%emt 0:01:26]} 51. Qf2 {[%emt 0:01:21]} Bf7 {[%emt 0:00:25]} 52. Kg2 {[%emt 0:00:47]} Ka6 {[%emt 0:00:21]} 53. Bg6 {[%emt 0:05:08]} Bxg6 {[%emt 0:00:30]} 54. hxg6 {[%emt 0:00:06]} Ne4 {[%emt 0:00:05]} 55. Qf7 {[%emt 0:00:41]} Qg5 {[%emt 0:00:16]} 56. Qxe6+ {[%emt 0:00:14]} Nd6 {[%emt 0:00:21]} 57. Qxd6+ {[%emt 0:00:07]} Kb7 {[%emt 0:00:04]} 58. Rf7+ {[%emt 0:00:51]} Ka8 {[%emt 0:00:14]} 59. Qf8+ {[%emt 0:00:14]} Qd8 {[%emt 0:00:07]} 60. Qxd8# {[%emt 0:00:05]} 1-0